fUST/lending_fUST_20250701
["ID","MTS","AMOUNT","RATE_DAILY","PERIOD"]
[368744625,1751341857997,-847.53272281,0.000218,7]
[368744626,1751341858009,-12571.40790328,0.000218,7]
[368744627,1751341858020,-160.0,0.000218,7]
[368744628,1751341858031,-188.1,0.00021818,5]
[368744629,1751341858042,-200.98010284,0.00021856,2]
[368744630,1751341858054,-1747.0,0.00021857,2]
[368744631,1751341858065,-1747.0,0.00021857,2]
[368744632,1751341858076,-1747.0,0.00021857,2]
[368744633,1751341858086,-1747.0,0.00021857,2]
[368744634,1751341858096,-1747.0,0.00021857,2]
[368744635,1751341858106,-1747.0,0.00021857,2]
[368744636,1751341858116,-1747.0,0.00021857,2]
[368744637,1751341858127,-1747.0,0.00021857,2]
[368744638,1751341858137,-1747.0,0.00021857,2]
[368744639,1751341858148,-1747.0,0.00021857,2]
[368744640,1751341858159,-1747.0,0.00021857,2]
[368744641,1751341858170,-1747.0,0.00021857,2]
[368744642,1751341858181,-1747.0,0.00021857,2]
[368744643,1751341858191,-1747.0,0.00021857,2]
[368744644,1751341858203,-1747.0,0.00021857,2]
[368744645,1751341858212,-1747.0,0.00021857,2]
[368744646,1751341858222,-1747.0,0.00021857,2]
[368744647,1751341858232,-1747.0,0.00021857,2]
[368744648,1751341858243,-1747.0,0.00021857,2]
[368744649,1751341858253,-1747.0,0.00021857,2]
[368744650,1751341858263,-1747.0,0.00021857,2]
[368744651,1751341858273,-1747.0,0.00021857,2]
[368744652,1751341858284,-1747.0,0.00021857,2]
[368744653,1751341858298,-1747.0,0.00021857,2]
[368744654,1751341858310,-1747.0,0.00021857,2]
[368744655,1751341858320,-1747.0,0.00021857,2]
[368744656,1751341858330,-1747.0,0.00021857,2]
[368744657,1751341858341,-1747.0,0.00021857,2]
[368744658,1751341858351,-1747.0,0.00021857,2]
[368744659,1751341858363,-1747.0,0.00021857,2]
[368744660,1751341858373,-1747.0,0.00021857,2]
[368744661,1751341858383,-1747.0,0.00021857,2]
[368744662,1751341858394,-1747.0,0.00021857,2]
[368744663,1751341858404,-151.0,0.00021857,2]
[368744664,1751341858414,-151.0,0.00021857,2]
[368744665,1751341858424,-150.163147,0.000219,2]
[368744666,1751341858435,-460.0,0.00021917,2]
[368744667,1751341858445,-460.0,0.00021917,2]
[368744668,1751341858456,-460.0,0.00021917,2]
[368744669,1751341858466,-503.07669286,0.00021917,2]
[368744670,1751341858475,-167.286908,0.00021917,2]
[368744671,1751341858486,-500.0,0.00021917,2]
[368744672,1751341858497,-500.0,0.00021917,2]
[368744673,1751341858507,-500.0,0.00021917,2]
[368744674,1751341858517,-500.0,0.00021917,2]
[368744675,1751341858527,-500.0,0.00021917,2]
[368744676,1751341858537,-500.0,0.00021917,2]
[368744677,1751341858547,-500.0,0.00021917,2]
[368744678,1751341858557,-500.0,0.00021917,2]
[368744679,1751341858567,-500.0,0.00021917,2]
[368744680,1751341858577,-500.0,0.00021917,2]
[368744681,1751341858587,-500.0,0.00021917,2]
[368744682,1751341858597,-500.0,0.00021917,2]
[368744683,1751341858607,-500.0,0.00021917,2]
[368744684,1751341858617,-500.0,0.00021917,2]
[368744685,1751341858627,-501.23180368,0.00021917,2]
[368744686,1751341858637,-151.0,0.00021918,2]
[368744687,1751341858647,-151.0,0.00021918,2]
[368744688,1751341858657,-151.693705,0.00021918,2]
[368744689,1751341858668,-1317.9021564,0.00021918,7]
[368744690,1751341858678,-252.442198,0.00021918,2]
[368744691,1751341858688,-252.442198,0.00021918,2]
[368744692,1751341858698,-252.442198,0.00021918,2]
[368744693,1751341858707,-252.442198,0.00021918,2]
[368744694,1751341858719,-252.442198,0.00021918,2]
[368744695,1751341858729,-252.442198,0.00021918,2]
[368744696,1751341858739,-252.442198,0.00021918,2]
[368744697,1751341858749,-252.442198,0.00021918,2]
[368744698,1751341858759,-252.442198,0.00021918,2]
[368744699,1751341858769,-252.442198,0.00021918,2]
[368744700,1751341858779,-252.442198,0.00021918,2]
[368744701,1751341858789,-252.442198,0.00021918,2]
[368744702,1751341858799,-252.442198,0.00021918,2]
[368744703,1751341858810,-252.442198,0.00021918,2]
[368744704,1751341858820,-252.442198,0.00021918,2]
[368744705,1751341858830,-252.442198,0.00021918,2]
[368744706,1751341858840,-252.442198,0.00021918,2]
[368744707,1751341858851,-252.442198,0.00021918,2]
[368744708,1751341858860,-252.442198,0.00021918,2]
[368744709,1751341858870,-252.442208,0.00021918,2]
[368744710,1751341858880,-481.89258307,0.00021918,7]
[368744711,1751341858890,-171.0,0.00021918,2]
[368744712,1751341858899,-171.0,0.00021918,2]
[368744713,1751341858909,-151.0,0.00021918,2]
[368744714,1751341858919,-151.0,0.00021918,2]
[368744715,1751341858929,-302.0,0.00021918,2]
[368744716,1751341858942,-150.0,0.00021918,2]
[368744717,1751341858952,-171.0,0.00021918,2]
[368744718,1751341858962,-1142.76109378,0.00021918,2]
[368744719,1751341858972,-460.14117512,0.00021959,2]
[368744720,1751341858981,-457.62868089,0.00021969,6]
[368744721,1751341858992,-500.0,0.00021973,2]
[368744722,1751341859002,-500.62288182,0.00021973,2]
[368744723,1751341859011,-500.0,0.00021973,2]
[368744724,1751341859021,-151.0,0.00021973,7]
[368744725,1751341859032,-151.0,0.00021973,7]
[368744726,1751341859042,-151.0,0.00021973,2]
[368744727,1751341859052,-173.160294,0.00021984,7]
[368744728,1751341859062,-580.270226,0.00021987,7]
[368744729,1751341859072,-580.270226,0.00021987,7]
[368744730,1751341859082,-204.275969,0.00021987,7]
[368744731,1751341859092,-204.275969,0.00021987,7]
[368744732,1751341859101,-5000.0,0.00021987,2]
[368744733,1751341859111,-5000.0,0.00021987,2]
[368744734,1751341859121,-5000.0,0.00021987,2]
[368744735,1751341859132,-5000.0,0.00021987,2]
[368744736,1751341859142,-5000.0,0.00021987,2]
[368744737,1751341859153,-25853.95394707,0.0002199,15]
[368744738,1751341860068,-460.0,0.0001817,2]
[368744739,1751341860079,-460.0,0.00018172,2]
[368744740,1751341860090,-460.0,0.00018446,2]
[368744741,1751341860101,-460.0,0.0001872,2]
[368744742,1751341860111,-460.0,0.00018994,2]
[368744743,1751341860121,-467.66864829,0.00019268,2]
[368744744,1751341860131,-247.08722731,0.0002199,15]
[368744745,1751341860172,-500.0,0.00018164,2]
[368744746,1751341860183,-500.0,0.00018164,2]
[368744747,1751341860193,-500.0,0.00018166,2]
[368744748,1751341860202,-1783.270017,0.0002199,15]
[368744749,1751341889530,-163.86642153,0.0001807,2]
[368744750,1751341893432,-405.9435708,0.0001807,2]
[368744751,1751341895693,-263.64663,0.0001807,2]
[368744752,1751341897287,-181.98501276,0.0001807,2]
[368744753,1751341899773,-160.26247724,0.0001807,2]
[368744754,1751341901415,-167.21274718,0.0001807,2]
[368744755,1751341903685,-266.63617822,0.0001807,2]
[368744756,1751341905330,-157.14764056,0.0001807,2]
[368744757,1751341908250,-300.0,0.0001807,2]
[368744758,1751341911810,-241.3308556,0.0001807,2]
[368744759,1751341913538,-273.03324809,0.0001807,2]
[368744760,1751341917124,-205.85883205,0.0001807,2]
[368744761,1751341918841,-348.00964991,0.0001807,2]
[368744762,1751341922186,-168.72098321,0.0001807,2]
[368744763,1751341924287,-207.0259612,0.0001807,2]
[368744764,1751341926624,-163.41782826,0.0001807,2]
[368744765,1751341929283,-259.48271448,0.0001807,2]
[368744766,1751341931609,-218.28739803,0.0001807,2]
[368744767,1751341933465,-324.6703462,0.0001807,2]
[368744768,1751341938278,-160.0,0.0001807,2]
[368744769,1751341940528,-300.0,0.0001807,2]
[368744770,1751341944832,-163.09534951,0.0001807,2]
[368744771,1751341946486,-200.38911668,0.0001807,2]
[368744772,1751341949435,-241.3310835,0.0001807,2]
[368744773,1751341953414,-294.05614701,0.0001807,2]
[368744774,1751341958054,-97.36756078,0.0001807,2]
[368744775,1751342012420,289.436155,0.00013699,2]
[368744777,1751342035735,7469.4552434,0.00017305,2]
[368744791,1751342044647,-304.54028053,0.00018065,2]
[368744792,1751342047569,-156.37915575,0.00018065,2]
[368744793,1751342126180,19399.543824,0.00017166,2]
[368744795,1751342166483,167.0,0.00016438,3]
[368744797,1751342356819,-233.40002535,0.00018065,2]
[368744798,1751342358874,-176.00966665,0.00018065,2]
[368744799,1751342361158,-73.41366996,0.00018065,2]
[368744800,1751342361185,-226.58633004,0.0001807,2]
[368744801,1751342363369,-290.92937056,0.0001807,2]
[368744802,1751342367461,-151.58572632,0.0001807,2]
[368744803,1751342369155,-164.35519541,0.0001807,2]
[368744804,1751342464567,-167.80827088,0.0001807,2]
[368744805,1751342466902,-73.58979044,0.0001807,2]
[368744806,1751342487093,184.0,0.00016438,3]
[368744807,1751342575430,-292.18363299,0.00018065,2]
[368744808,1751342577676,-265.60674513,0.00018065,2]
[368744811,1751342581811,-198.37078854,0.00018065,2]
[368744814,1751342808663,176.0,0.00016438,3]
[368744815,1751342880774,-160.26247724,0.00018054,2]
[368744816,1751342880801,-139.73752276,0.00018062,2]
[368744817,1751342882467,-380.41199733,0.00018062,2]
[368744818,1751342886698,-47.24767294,0.00018062,2]
[368744819,1751342886722,-118.93489507,0.0001807,2]
[368744820,1751342888416,-32.06510493,0.0001807,2]
[368744822,1751342915086,-177.4536902,0.00018054,2]
[368744823,1751342915109,-16.64564195,0.00018065,2]
[368744824,1751342918852,-204.91819473,0.00018065,2]
[368744825,1751342920562,-250.85252126,0.00018065,2]
[368744826,1751342924902,-165.37814277,0.00018065,2]
[368744827,1751342928862,-447.25670653,0.00018065,2]
[368744850,1751343032184,-190.70960796,0.00018154,2]
[368744851,1751343032194,-116.73322116,0.00018155,2]
[368744854,1751343032206,-383.26677884,0.00018155,2]
[368744855,1751343032216,-695.11995597,0.00018159,2]
[368744856,1751343032235,-355.88004403,0.00018159,2]
[368744857,1751343032245,-300.0,0.0001816,2]
[368744858,1751343032256,-300.0,0.0001816,2]
[368744859,1751343032265,-300.0,0.0001816,2]
[368744861,1751343032275,-300.0,0.0001816,2]
[368744863,1751343032285,-587.0,0.00018161,2]
[368744864,1751343032294,-460.0,0.00018161,2]
[368744866,1751343032304,-460.0,0.00018161,2]
[368744867,1751343032313,-460.0,0.00018161,2]
[368744868,1751343032323,-460.0,0.00018161,2]
[368744869,1751343032332,-460.0,0.00018161,2]
[368744870,1751343032367,-501.46,0.00018161,2]
[368744871,1751343032376,-460.0,0.00018161,2]
[368744872,1751343032385,-460.0,0.00018161,2]
[368744873,1751343032395,-460.0,0.00018161,2]
[368744874,1751343032404,-460.0,0.00018161,2]
[368744875,1751343032414,-460.0,0.00018161,2]
[368744876,1751343032424,-1004.99,0.00018161,2]
[368744877,1751343032434,-586.45330244,0.00018161,2]
[368744878,1751343032444,-460.0,0.00018161,2]
[368744879,1751343032453,-460.0,0.00018161,2]
[368744880,1751343032463,-500.0,0.00018161,2]
[368744881,1751343032473,-500.0,0.00018161,2]
[368744882,1751343032483,-500.0,0.00018161,2]
[368744883,1751343032492,-500.0,0.00018161,2]
[368744884,1751343032502,-500.0,0.00018161,2]
[368744885,1751343032511,-500.0,0.00018161,2]
[368744886,1751343032521,-500.0,0.00018161,2]
[368744887,1751343032530,-500.0,0.00018161,2]
[368744888,1751343032540,-500.0,0.00018161,2]
[368744889,1751343032549,-500.0,0.00018161,2]
[368744890,1751343032559,-437.29118662,0.00018161,2]
[368744891,1751343032568,-505.24193161,0.00018161,2]
[368744892,1751343032578,-500.0,0.00018161,2]
[368744893,1751343032588,-500.0,0.00018161,2]
[368744894,1751343032597,-545.40645817,0.00018161,2]
[368744895,1751343032608,-460.0,0.00018162,2]
[368744896,1751343032617,-460.0,0.00018162,2]
[368744897,1751343032626,-460.0,0.00018162,2]
[368744898,1751343032636,-460.0,0.00018162,2]
[368744899,1751343032645,-460.0,0.00018162,2]
[368744900,1751343032655,-462.40218156,0.00018162,2]
[368744901,1751343032665,-460.0,0.00018162,2]
[368744902,1751343032675,-461.56558223,0.00018162,2]
[368744903,1751343032684,-463.34665691,0.00018162,2]
[368744904,1751343032693,-460.0,0.00018162,2]
[368744905,1751343032703,-461.14349152,0.00018162,2]
[368744906,1751343032713,-460.0,0.00018162,2]
[368744907,1751343032722,-460.0,0.00018162,2]
[368744908,1751343032731,-460.0,0.00018162,2]
[368744909,1751343032740,-460.0,0.00018162,2]
[368744910,1751343032750,-460.0,0.00018162,2]
[368744911,1751343032759,-460.0,0.00018162,2]
[368744912,1751343032768,-1208.78,0.00018162,2]
[368744913,1751343032778,-460.0,0.00018162,2]
[368744914,1751343032787,-460.0,0.00018162,2]
[368744915,1751343032796,-460.0,0.00018162,2]
[368744916,1751343032805,-1145.39,0.00018162,2]
[368744917,1751343032815,-460.0,0.00018162,2]
[368744918,1751343032824,-460.0,0.00018162,2]
[368744919,1751343032833,-460.0,0.00018162,2]
[368744920,1751343032843,-460.0,0.00018162,2]
[368744921,1751343032853,-460.0,0.00018162,2]
[368744922,1751343032862,-597.14,0.00018162,2]
[368744923,1751343032872,-460.0,0.00018162,2]
[368744924,1751343032881,-460.0,0.00018162,2]
[368744925,1751343032891,-463.08868485,0.00018162,2]
[368744926,1751343032901,-460.0,0.00018162,2]
[368744927,1751343032910,-460.0,0.00018162,2]
[368744928,1751343032919,-1235.91,0.00018162,2]
[368744929,1751343032928,-1474.29,0.00018162,2]
[368744930,1751343032938,-1719.17,0.00018162,2]
[368744931,1751343032947,-460.0,0.00018162,2]
[368744932,1751343032957,-500.0,0.00018162,2]
[368744933,1751343032966,-500.0,0.00018162,2]
[368744934,1751343032975,-500.0,0.00018162,2]
[368744935,1751343032985,-500.0,0.00018162,2]
[368744936,1751343032995,-500.0,0.00018162,2]
[368744937,1751343033005,-387.73501237,0.00018162,2]
[368744938,1751343033014,-500.0,0.00018162,2]
[368744939,1751343033026,-500.0,0.00018162,2]
[368744940,1751343033036,-500.0,0.00018162,2]
[368744941,1751343033046,-647.97153128,0.00018162,2]
[368744942,1751343033056,-500.0,0.00018162,2]
[368744943,1751343033065,-500.0,0.00018162,2]
[368744944,1751343033074,-500.0,0.00018162,2]
[368744945,1751343033084,-500.0,0.00018162,2]
[368744946,1751343033093,-181.67545776,0.00018162,2]
[368744947,1751343033103,-500.0,0.00018162,2]
[368744948,1751343033112,-500.0,0.00018162,2]
[368744949,1751343033123,-500.0,0.00018162,2]
[368744950,1751343033134,-460.0,0.00018162,2]
[368744951,1751343033150,-500.0,0.00018162,2]
[368744952,1751343033160,-500.0,0.00018162,2]
[368744953,1751343033170,-500.0,0.00018162,2]
[368744954,1751343033180,-500.0,0.00018162,2]
[368744955,1751343033190,-500.0,0.00018162,2]
[368744956,1751343033201,-500.0,0.00018162,2]
[368744957,1751343033211,-300.0,0.00018162,2]
[368744958,1751343033221,-500.0,0.00018162,2]
[368744959,1751343033230,-500.0,0.00018162,2]
[368744960,1751343033239,-511.34,0.00018162,2]
[368744961,1751343033249,-460.0,0.00018162,2]
[368744962,1751343033262,-460.0,0.00018162,2]
[368744963,1751343033273,-460.0,0.00018162,2]
[368744964,1751343033284,-460.0,0.00018162,2]
[368744965,1751343033294,-460.0,0.00018162,2]
[368744966,1751343033305,-460.0,0.00018162,2]
[368744967,1751343033315,-602.76,0.00018162,2]
[368744968,1751343033325,-829.0,0.00018162,2]
[368744969,1751343033340,-460.0,0.00018162,2]
[368744970,1751343033350,-460.0,0.00018162,2]
[368744971,1751343033360,-500.48,0.00018162,2]
[368744972,1751343033370,-460.0,0.00018162,2]
[368744973,1751343033380,-500.0,0.00018162,2]
[368744974,1751343033390,-500.0,0.00018162,2]
[368744975,1751343033400,-460.0,0.00018162,2]
[368744976,1751343033410,-460.0,0.00018162,2]
[368744977,1751343033420,-574.41,0.00018162,2]
[368744978,1751343033431,-460.99317728,0.00018163,2]
[368744979,1751343033441,-460.0,0.00018163,2]
[368744980,1751343033452,-460.0,0.00018163,2]
[368744981,1751343033463,-1000.0,0.00018163,2]
[368744982,1751343033473,-460.0,0.00018163,2]
[368744983,1751343033483,-460.0,0.00018163,2]
[368744984,1751343033493,-460.0,0.00018163,2]
[368744985,1751343033503,-460.81447985,0.00018163,2]
[368744986,1751343033514,-461.06014944,0.00018163,2]
[368744987,1751343033523,-460.0,0.00018163,2]
[368744988,1751343033534,-460.57026977,0.00018163,2]
[368744989,1751343033545,-460.0,0.00018163,2]
[368744990,1751343033554,-460.0,0.00018163,2]
[368744991,1751343033564,-423.29328346,0.00018163,2]
[368744992,1751343033574,-460.0,0.00018163,2]
[368744993,1751343033585,-461.67482925,0.00018163,2]
[368744994,1751343033595,-460.0,0.00018163,2]
[368744995,1751343033605,-500.0,0.00018163,2]
[368744996,1751343033615,-462.58049377,0.00018163,2]
[368744997,1751343033625,-460.0,0.00018163,2]
[368744998,1751343033635,-460.0,0.00018163,2]
[368744999,1751343033645,-460.0,0.00018163,2]
[368745000,1751343033655,-460.0,0.00018163,2]
[368745001,1751343033666,-460.0,0.00018163,2]
[368745002,1751343033676,-460.0,0.00018163,2]
[368745003,1751343033686,-460.83027906,0.00018163,2]
[368745004,1751343033696,-460.0,0.00018163,2]
[368745005,1751343033707,-460.0,0.00018163,2]
[368745006,1751343033717,-461.79810994,0.00018163,2]
[368745007,1751343033727,-460.0,0.00018163,2]
[368745008,1751343033737,-539.06517588,0.00018163,2]
[368745009,1751343033747,-460.0,0.00018163,2]
[368745010,1751343033757,-460.0,0.00018163,2]
[368745011,1751343033767,-460.0,0.00018163,2]
[368745012,1751343033777,-460.0,0.00018163,2]
[368745013,1751343033787,-460.0,0.00018163,2]
[368745014,1751343033798,-460.0,0.00018163,2]
[368745015,1751343033808,-460.0,0.00018163,2]
[368745016,1751343033817,-460.0,0.00018163,2]
[368745017,1751343033827,-460.0,0.00018163,2]
[368745018,1751343033837,-460.0,0.00018163,2]
[368745019,1751343033847,-460.99237649,0.00018163,2]
[368745020,1751343033856,-460.0,0.00018163,2]
[368745021,1751343033866,-405.91448913,0.00018163,2]
[368745022,1751343033875,-460.0,0.00018163,2]
[368745023,1751343033885,-438.40969327,0.00018163,2]
[368745024,1751343033895,-460.0,0.00018163,2]
[368745025,1751343033905,-460.0,0.00018163,2]
[368745026,1751343033915,-470.59821586,0.00018163,2]
[368745027,1751343033925,-460.0,0.00018163,2]
[368745028,1751343033935,-456.0,0.00018163,2]
[368745029,1751343033945,-460.98087775,0.00018163,2]
[368745030,1751343033955,-460.0,0.00018163,2]
[368745031,1751343033965,-460.0,0.00018163,2]
[368745032,1751343033974,-461.20964506,0.00018163,2]
[368745033,1751343033984,-403.88886168,0.00018163,2]
[368745034,1751343033993,-242.32882662,0.00018163,2]
[368745035,1751343034003,-460.0,0.00018163,2]
[368745036,1751343034012,-460.0,0.00018163,2]
[368745037,1751343034022,-460.0,0.00018163,2]
[368745038,1751343034031,-460.0,0.00018163,2]
[368745039,1751343034041,-460.0,0.00018163,2]
[368745040,1751343034050,-460.0,0.00018163,2]
[368745041,1751343034060,-460.0,0.00018163,2]
[368745042,1751343034070,-460.0,0.00018163,2]
[368745043,1751343034079,-461.19277408,0.00018163,2]
[368745044,1751343034089,-461.35070995,0.00018163,2]
[368745045,1751343034099,-460.0,0.00018163,2]
[368745046,1751343034110,-460.0,0.00018163,2]
[368745047,1751343034119,-460.0,0.00018163,2]
[368745048,1751343034129,-460.0,0.00018163,2]
[368745049,1751343034139,-460.0,0.00018163,2]
[368745050,1751343034149,-460.0,0.00018163,2]
[368745051,1751343034159,-460.0,0.00018163,2]
[368745052,1751343034169,-460.0,0.00018163,2]
[368745053,1751343034179,-460.0,0.00018163,2]
[368745054,1751343034188,-460.0,0.00018163,2]
[368745055,1751343034198,-460.0,0.00018163,2]
[368745056,1751343034208,-460.0,0.00018163,2]
[368745057,1751343034320,-460.0,0.00018163,2]
[368745058,1751343034331,-328.75180451,0.00018163,2]
[368745059,1751343034342,-460.0,0.00018163,2]
[368745060,1751343034351,-460.0,0.00018163,2]
[368745061,1751343034362,-460.0,0.00018163,2]
[368745062,1751343034371,-460.0,0.00018163,2]
[368745063,1751343034381,-460.0,0.00018163,2]
[368745064,1751343034391,-460.0,0.00018163,2]
[368745065,1751343034401,-460.65277988,0.00018163,2]
[368745066,1751343034411,-461.27890861,0.00018163,2]
[368745067,1751343034421,-461.6688638,0.00018163,2]
[368745068,1751343034431,-461.12157109,0.00018163,2]
[368745069,1751343034441,-460.0,0.00018163,2]
[368745070,1751343034451,-579.79399599,0.00018163,2]
[368745071,1751343034462,-460.0,0.00018163,2]
[368745072,1751343034472,-460.74651541,0.00018163,2]
[368745073,1751343034482,-460.0,0.00018163,2]
[368745074,1751343034491,-462.03793824,0.00018163,2]
[368745075,1751343034502,-580.95,0.00018163,2]
[368745076,1751343034511,-434.73971417,0.00018163,2]
[368745077,1751343034522,-460.0,0.00018163,2]
[368745078,1751343034531,-450.30729279,0.00018163,2]
[368745079,1751343034541,-500.0,0.00018163,2]
[368745080,1751343034551,-460.0,0.00018163,2]
[368745081,1751343034561,-460.0,0.00018163,2]
[368745082,1751343034570,-286.52371914,0.00018163,2]
[368745083,1751343034579,-460.0,0.00018163,2]
[368745084,1751343034589,-460.0,0.00018163,2]
[368745085,1751343034599,-460.0,0.00018163,2]
[368745086,1751343034609,-460.0,0.00018163,2]
[368745087,1751343034618,-460.0,0.00018163,2]
[368745088,1751343034628,-543.60368122,0.00018163,2]
[368745089,1751343034638,-460.0,0.00018163,2]
[368745090,1751343034648,-460.0,0.00018163,2]
[368745091,1751343034658,-460.0,0.00018163,2]
[368745092,1751343034668,-460.0,0.00018163,2]
[368745093,1751343034678,-460.0,0.00018163,2]
[368745094,1751343034688,-460.0,0.00018163,2]
[368745095,1751343034698,-460.0,0.00018163,2]
[368745096,1751343034707,-460.0,0.00018163,2]
[368745097,1751343034717,-460.0,0.00018163,2]
[368745098,1751343034726,-460.0,0.00018163,2]
[368745099,1751343034735,-460.0,0.00018163,2]
[368745100,1751343034745,-460.0,0.00018163,2]
[368745101,1751343034755,-460.0,0.00018163,2]
[368745102,1751343034764,-460.0,0.00018163,2]
[368745103,1751343034774,-460.0,0.00018163,2]
[368745104,1751343034784,-460.0,0.00018163,2]
[368745105,1751343034794,-460.0,0.00018163,2]
[368745106,1751343034803,-460.0,0.00018163,2]
[368745107,1751343034813,-521.92,0.00018163,2]
[368745108,1751343034822,-460.0,0.00018163,2]
[368745109,1751343034832,-500.64,0.00018163,2]
[368745110,1751343034841,-460.0,0.00018163,2]
[368745111,1751343034850,-455.0,0.00018163,2]
[368745112,1751343034860,-460.79240606,0.00018163,2]
[368745113,1751343034869,-460.0,0.00018163,2]
[368745114,1751343034878,-460.0,0.00018163,2]
[368745115,1751343034887,-460.0,0.00018163,2]
[368745116,1751343034896,-460.0,0.00018163,2]
[368745117,1751343034905,-489.83249332,0.00018163,2]
[368745118,1751343034915,-462.35328977,0.00018163,2]
[368745119,1751343034925,-460.0,0.00018163,2]
[368745120,1751343034934,-460.0,0.00018163,2]
[368745121,1751343034944,-537.97,0.00018163,2]
[368745122,1751343034953,-460.0,0.00018163,2]
[368745123,1751343034962,-461.56392316,0.00018163,2]
[368745124,1751343034971,-462.46252548,0.00018163,2]
[368745125,1751343034981,-460.0,0.00018163,2]
[368745126,1751343034990,-460.0,0.00018163,2]
[368745127,1751343034999,-460.69176406,0.00018163,2]
[368745128,1751343035009,-460.0,0.00018163,2]
[368745129,1751343035018,-460.0,0.00018163,2]
[368745130,1751343035028,-460.0,0.00018163,2]
[368745131,1751343035037,-460.0,0.00018163,2]
[368745132,1751343035047,-460.0,0.00018163,2]
[368745133,1751343035057,-460.0,0.00018163,2]
[368745134,1751343035066,-460.0,0.00018163,2]
[368745135,1751343035075,-460.0,0.00018163,2]
[368745136,1751343035084,-460.0,0.00018163,2]
[368745137,1751343035094,-460.0,0.00018163,2]
[368745138,1751343035103,-461.23036001,0.00018163,2]
[368745139,1751343035113,-1027.53,0.00018163,2]
[368745140,1751343035122,-460.0,0.00018163,2]
[368745141,1751343035131,-537.8,0.00018163,2]
[368745142,1751343035140,-460.0,0.00018163,2]
[368745143,1751343035149,-460.0,0.00018163,2]
[368745144,1751343035159,-460.0,0.00018163,2]
[368745145,1751343035168,-460.0,0.00018163,2]
[368745146,1751343035178,-460.0,0.00018163,2]
[368745147,1751343035187,-460.55244821,0.00018163,2]
[368745148,1751343035197,-460.0,0.00018163,2]
[368745149,1751343035206,-460.0,0.00018163,2]
[368745150,1751343035215,-460.0,0.00018163,2]
[368745151,1751343035224,-500.0,0.00018163,2]
[368745152,1751343035233,-441.87827925,0.00018163,2]
[368745153,1751343035242,-460.0,0.00018163,2]
[368745154,1751343035253,-2143.77,0.00018163,2]
[368745155,1751343035264,-462.36725769,0.00018163,2]
[368745156,1751343035273,-460.0,0.00018163,2]
[368745157,1751343035282,-460.0,0.00018163,2]
[368745158,1751343035292,-460.79205628,0.00018163,2]
[368745159,1751343035303,-460.0,0.00018163,2]
[368745160,1751343035313,-277.19,0.00018163,2]
[368745161,1751343035322,-460.0,0.00018163,2]
[368745162,1751343035332,-460.0,0.00018163,2]
[368745163,1751343035342,-462.6209576,0.00018163,2]
[368745164,1751343035351,-460.0,0.00018163,2]
[368745165,1751343035361,-460.0,0.00018163,2]
[368745166,1751343035370,-461.57208016,0.00018163,2]
[368745167,1751343035379,-461.04261456,0.00018163,2]
[368745168,1751343035389,-464.07435188,0.00018163,2]
[368745169,1751343035398,-336.73143346,0.00018163,2]
[368745170,1751343035408,-460.0,0.00018163,2]
[368745171,1751343035417,-461.40543235,0.00018163,2]
[368745172,1751343035427,-460.0,0.00018163,2]